bitfinex/quotes_SOLUSD_20250413
["timestamp","ask_amount","ask_price","bid_price","bid_amount"]
[1744572961560,99.4064509,130.27,130.22,16.5064509]
[1744572961874,0.14216157,130.24,130.2,16.5064509]
[1744572962051,16.5064509,130.23,130.18,16.5064509]
[1744572962255,16.5064509,130.25,130.2,16.5064509]
[1744572962456,7.81916157,130.26,130.21,16.5064509]
[1744572962652,6.3916,130.28,130.2,18.64964886]
[1744572962870,30.5740509,130.28,130.2,18.64964886]
[1744572963174,16.5064509,130.27,130.22,16.5064509]
[1744572963373,14.0676,130.28,130.2,18.64964886]
[1744572963565,0.14216157,130.25,130.19,9.161]
[1744572963752,16.5064509,130.24,130.19,24.1264509]
[1744572963952,16.5064509,130.26,130.21,16.5064509]
[1744572964151,42.5064509,130.25,130.2,16.5064509]
[1744572964969,42.93293561,130.24,130.19,16.5064509]
[1744572965570,16.5064509,130.22,130.16,0.03]
[1744572965780,0.42648471,130.22,130.17,16.5064509]
[1744572965962,16.93293561,130.22,130.17,16.5064509]
[1744572966663,43.3819509,130.23,130.18,16.5064509]
[1744572967274,43.3819509,130.23,130.17,16.5064509]
[1744572967478,16.5064509,130.22,130.17,16.5064509]
[1744572967657,7.6799,130.21,130.17,16.5064509]
[1744572971464,16.93293561,130.2,130.16,0.03]
[1744572971660,16.93293561,130.17,130.16,0.03]
[1744572971865,35.58258447,130.17,130.16,0.0001]
[1744572972066,0.42648471,130.17,130.16,0.0001]
[1744572972275,26.42648471,130.17,130.16,0.0001]
[1744572972780,42.93293561,130.17,130.16,0.0001]
[1744572972980,26.42648471,130.17,130.16,0.0001]
[1744572973384,69.26478447,130.17,130.16,0.0001]
[1744572973676,69.26478447,130.17,130.15,9.34e-05]
[1744572973885,26.42648471,130.16,130.15,9.34e-05]
[1744572974055,42.93293561,130.16,130.15,9.34e-05]
[1744572974262,26.0,130.16,130.15,9.34e-05]
[1744572974460,26.42648471,130.16,130.15,9.34e-05]
[1744572974760,27.29073357,130.15,130.14,1e-08]
[1744572975061,18.79181043,130.12,130.1,0.04300001]
[1744572975278,43.26838447,130.11,130.1,1e-08]
[1744572975984,24.61873561,130.11,130.1,1e-08]
[1744572976595,43.26838447,130.11,130.1,1e-08]
[1744572977169,0.42648471,130.1,130.09,1e-08]
[1744572977389,26.90801357,130.1,130.09,1e-08]
[1744572978275,45.55766243,130.1,130.09,1e-08]
[1744572979178,34.59431357,130.1,130.09,1e-08]
[1744572979570,34.30999043,130.1,130.09,1e-08]
[1744572979777,34.59431357,130.1,130.09,1e-08]
[1744572980401,19.212,130.13,130.09,1e-08]
[1744572980597,0.14216157,130.12,130.09,1e-08]
[1744572980798,0.42648471,130.12,130.09,1e-08]
[1744572980996,0.14216157,130.12,130.09,1e-08]
[1744572981292,7.82736157,130.12,130.09,1e-08]
[1744572982293,26.0,130.1,130.09,1e-08]
[1744572982595,26.48152886,130.11,130.09,1e-08]
[1744572983090,34.30889043,130.12,130.09,1e-08]
[1744572984316,45.55766243,130.1,130.09,1e-08]
[1744572984593,52.90801357,130.1,130.09,1e-08]
[1744572984976,71.55766243,130.1,130.09,1e-08]
[1744572985197,0.42648471,130.06,130.05,0.03]
[1744572985409,26.42648471,130.04,130.03,0.03]
[1744572985694,26.0,130.04,130.03,0.03]
[1744572986277,52.90801357,130.04,130.03,0.03]
[1744572986873,52.48152886,130.04,130.03,0.03]
[1744572987077,7.6887,130.06,130.03,0.03]
[1744572987280,7.6887,130.06,130.03,26.51152886]
[1744572987509,34.16902886,130.08,130.04,26.48152886]
[1744572987687,7.687,130.09,130.06,26.48152886]
[1744572988000,0.14216157,130.12,130.07,26.48152886]
[1744572988209,0.14216157,130.12,130.08,26.48152886]
[1744572988680,0.14216157,130.12,130.05,6.6445]
[1744572988681,19.2086,130.15,130.1,26.48152886]
[1744572988886,26.0,130.12,130.1,26.48152886]
[1744572989609,7.6853,130.12,130.1,26.48152886]
[1744572989791,7.6844,130.14,130.11,26.48152886]
[1744572990180,7.6844,130.14,130.1,26.48152886]
[1744572990389,26.0,130.11,130.07,26.48152886]
[1744572990686,52.48152886,130.11,130.06,26.48152886]
[1744572990881,26.90801357,130.1,130.05,26.48152886]
[1744572991282,52.48152886,130.11,130.06,26.48152886]
[1744572991480,52.48152886,130.11,130.07,26.48152886]
[1744572991685,34.16782886,130.1,130.05,26.48152886]
[1744572992089,26.90801357,130.09,130.04,26.48152886]
[1744572992613,26.48152886,130.07,130.03,0.03]
[1744572993104,26.90801357,130.08,130.03,26.51152886]
[1744572993283,26.48152886,130.09,130.04,26.48152886]
[1744572993801,7.6875,130.08,130.05,26.48152886]
[1744572993984,8.11338471,130.1,130.06,26.48152886]
[1744572994193,34.59491357,130.1,130.05,26.48152886]
[1744572994788,8.11338471,130.1,130.06,26.48152886]
[1744572994990,7.6869,130.1,130.06,26.48152886]
[1744572995594,0.42648471,130.09,130.05,26.48152886]
[1744572995900,26.90801357,130.07,130.03,0.03]
[1744572996105,26.48152886,130.06,130.03,0.03]
[1744572997601,26.90801357,130.07,130.03,0.03]
[1744572997794,7.6887,130.06,130.03,26.51152886]
[1744572998705,7.6887,130.06,130.03,0.03]
[1744572998997,26.0,130.04,130.03,0.03]
[1744572999591,26.42648471,130.04,130.03,0.03]
[1744572999907,33.6899,130.04,130.03,0.03]
[1744573000284,26.62369043,130.07,130.03,0.03]
[1744573000503,0.42648471,130.07,130.03,26.51152886]
[1744573000703,26.0,130.09,130.05,26.48152886]
[1744573001006,34.16782886,130.1,130.05,26.48152886]
[1744573001391,53.38392886,130.1,130.05,26.48152886]
[1744573001597,53.38392886,130.1,130.06,26.48152886]
[1744573001598,7.6863,130.1,130.06,26.48152886]
[1744573002807,7.6863,130.1,130.03,0.03]
[1744573002808,0.42648471,130.09,130.05,26.48152886]
[1744573003808,7.6863,130.1,130.07,26.48152886]
[1744573003983,7.6863,130.1,130.06,26.48152886]
[1744573005705,7.6863,130.1,130.04,7.6895]
[1744573005916,7.6863,130.1,130.06,26.48152886]
[1744573007613,7.6863,130.1,130.05,26.48152886]
[1744573008207,34.16782886,130.1,130.03,0.03]
[1744573008415,7.6863,130.1,130.06,26.48152886]
[1744573010604,7.6863,130.1,130.07,26.48152886]
[1744573011003,34.16782886,130.1,130.05,26.48152886]
[1744573011532,26.48152886,130.09,130.03,0.03]
[1744573011721,26.48152886,130.08,130.03,26.51152886]
[1744573011935,26.90801357,130.09,130.04,26.48152886]
[1744573012430,7.6875,130.08,130.04,26.48152886]
[1744573012728,7.6875,130.08,130.03,7.7204]
[1744573012729,7.6875,130.08,130.05,26.48152886]
[1744573014202,53.38372886,130.1,130.05,26.48152886]
[1744573014726,26.90801357,130.09,130.04,26.48152886]
[1744573015434,26.90801357,130.09,130.03,0.03]
[1744573015435,26.48152886,130.07,130.03,0.03]
[1744573015619,26.0,130.0,129.97,0.03]
[1744573015920,6.3447,129.98,129.91,26.48152886]
[1744573016138,7.6946,129.96,129.9,26.48152886]
[1744573016302,34.17572886,129.97,129.92,26.48152886]
[1744573016498,37.96096984,129.97,129.92,26.48152886]
[1744573016704,0.42648471,129.96,129.91,26.48152886]
[1744573016916,7.6942,129.97,129.92,26.48152886]
[1744573017130,34.17572886,129.97,129.91,26.51152886]
[1744573017333,26.90801357,129.96,129.91,0.03]
[1744573017497,26.90801357,129.96,129.91,26.51152886]
[1744573017699,34.17572886,129.97,129.91,26.51152886]
[1744573017929,7.6942,129.97,129.93,26.48152886]
[1744573019109,34.17572886,129.97,129.92,26.48152886]
[1744573020133,18.79181043,129.95,129.91,0.03]
[1744573020424,18.79181043,129.95,129.79,7.64]
[1744573020425,26.0,129.86,129.79,7.64]
[1744573020603,26.48152886,129.85,129.8,26.48152886]
[1744573020804,52.48152886,129.86,129.81,26.48152886]
[1744573021115,7.7011,129.85,129.78,6.3653]
[1744573021321,7.7011,129.85,129.81,26.48152886]
[1744573021615,7.7011,129.85,129.79,7.14]
[1744573021924,7.7011,129.85,129.81,26.48152886]
[1744573022306,7.7011,129.85,129.79,18.64964886]
[1744573022706,7.7011,129.85,129.81,26.48152886]
[1744573022902,26.0,129.88,129.84,26.48152886]
[1744573023106,26.48152886,129.88,129.83,26.48152886]
[1744573023322,26.48152886,129.85,129.8,26.48152886]
[1744573023523,0.14216157,129.83,129.73,6.3653]
[1744573023719,26.48152886,129.8,129.74,26.48152886]
[1744573023921,26.48152886,129.8,129.75,26.48152886]
[1744573024113,26.48152886,129.78,129.71,9.282]
[1744573024518,26.48152886,129.79,129.74,26.48152886]
[1744573024715,26.765852,129.77,129.67,7.7118]
[1744573024915,26.62369043,129.74,129.66,6.17737662]
[1744573025115,0.14216157,129.76,129.71,26.48152886]
[1744573025332,50.08288968,129.81,129.75,26.48152886]
[1744573025333,26.28432314,129.79,129.75,26.48152886]
[1744573025532,0.42648471,129.76,129.71,26.48152886]
[1744573025835,26.0,129.69,129.64,2.6707712]
[1744573026245,26.0,129.65,129.64,2.6707712]
[1744573026412,26.0,129.62,129.58,96.00101078]
[1744573026611,26.765852,129.68,129.58,96.00101078]
[1744573026612,0.28432314,129.63,129.58,96.00101078]
[1744573026933,0.28432314,129.63,129.55,216.00227425]
[1744573026934,0.42648471,129.64,129.6,26.48152886]
[1744573027117,26.0,129.65,129.56,7.7183]
[1744573027637,26.0,129.64,129.55,16.0189]
[1744573027829,26.48152886,129.61,129.56,26.48152886]
[1744573028134,26.0,129.64,129.55,16.0187]
[1744573028314,26.48152886,129.63,129.55,8.3]
[1744573028510,26.48152886,129.59,129.51,8.62]
[1744573028713,26.48152886,129.6,129.55,0.03]
[1744573028918,7.7119,129.67,129.55,0.03]
[1744573029121,7.7119,129.67,129.56,26.36804886]
[1744573029122,0.42648471,129.66,129.56,26.36804886]
[1744573029305,40.43508076,129.65,129.56,26.36804886]
[1744573029510,8.3,129.68,129.61,40.43508076]
[1744573029725,7.7089,129.72,129.61,18.64964886]
[1744573029920,7.7224,129.74,129.68,40.43508076]
[1744573030120,70.12316967,129.76,129.72,40.43508076]
[1744573030331,48.14078076,129.78,129.73,40.43508076]
[1744573030521,40.43508076,129.77,129.72,40.43508076]
[1744573030918,15.4271,129.8,129.74,40.43508076]
[1744573031123,40.43508076,129.77,129.64,1.0]
[1744573031346,26.0,129.77,129.71,40.43508076]
[1744573031509,0.14216157,129.78,129.72,40.43508076]
[1744573031834,15.4271,129.8,129.74,40.43508076]
[1744573032135,40.43508076,129.78,129.73,40.43508076]
[1744573032312,40.43508076,129.78,129.68,40.43508076]
[1744573032313,40.43508076,129.76,129.65,34.62]
[1744573032518,40.43508076,129.76,129.55,20.03]
[1744573032519,40.43508076,129.68,129.6,8.64]
[1744573032723,0.28432314,129.7,129.59,40.43508076]
[1744573032724,40.43508076,129.65,129.59,40.43508076]
[1744573033023,40.43508076,129.64,129.59,40.43508076]
[1744573033428,40.43508076,129.68,129.63,40.43508076]
[1744573034019,40.43508076,129.69,129.64,40.43508076]
[1744573034419,40.43508076,129.71,129.66,40.43508076]
[1744573034619,40.43508076,129.71,129.65,40.43508076]
[1744573034836,40.43508076,129.7,129.65,40.43508076]
[1744573035047,40.43508076,129.71,129.65,40.43508076]
[1744573035344,66.43508076,129.7,129.65,40.43508076]
[1744573035646,66.43508076,129.7,129.64,40.43508076]
[1744573035847,26.0,129.69,129.65,40.43508076]
[1744573036019,26.42648471,129.71,129.66,40.43508076]
[1744573036020,0.42648471,129.71,129.66,40.43508076]
[1744573036354,40.43508076,129.75,129.7,40.43508076]
[1744573036530,7.7071,129.76,129.71,40.43508076]
[1744573036725,7.84826157,129.77,129.72,40.43508076]
[1744573037041,40.43508076,129.76,129.71,40.43508076]
[1744573037254,7.84826157,129.77,129.7,40.43508076]
[1744573037417,40.43508076,129.76,129.7,40.43508076]
[1744573037744,7.84826157,129.77,129.7,40.43508076]
[1744573037917,7.84826157,129.77,129.71,40.43508076]
[1744573038257,0.28432314,129.76,129.71,40.43508076]
[1744573038416,0.28432314,129.76,129.72,40.43508076]
[1744573038833,0.28432314,129.76,129.73,40.43508076]
[1744573039051,0.14216157,129.75,129.65,22.9379]
[1744573039213,40.57724233,129.75,129.7,40.43508076]
[1744573039414,0.28432314,129.73,129.65,27.28964886]
[1744573039638,0.14216157,129.71,129.66,40.43508076]
[1744573039947,0.14216157,129.72,129.67,40.43508076]
[1744573040249,0.14216157,129.72,129.62,264.46]
[1744573040250,0.28432314,129.68,129.61,8.64]
[1744573040460,0.28432314,129.68,129.63,40.43508076]
[1744573040461,40.7194039,129.68,129.63,40.43508076]
[1744573040627,0.28432314,129.64,129.55,0.03]
[1744573040827,0.28432314,129.68,129.62,40.43508076]
[1744573041039,0.28432314,129.68,129.55,1.03]
[1744573041040,0.28432314,129.69,129.66,40.43508076]
[1744573041245,0.42648471,129.73,129.68,40.43508076]
[1744573041419,0.28432314,129.73,129.69,40.43508076]
[1744573041622,82.9,129.76,129.72,40.43508076]
[1744573041959,0.28432314,129.76,129.72,40.43508076]
[1744573042137,26.28432314,129.76,129.72,40.43508076]
[1744573042341,0.14216157,129.76,129.72,40.43508076]
[1744573042545,48.28384233,129.76,129.71,40.43508076]
[1744573043049,0.14216157,129.75,129.71,40.43508076]
[1744573043654,7.7077,129.74,129.67,9.0]
[1744573043826,7.99142314,129.75,129.71,40.43508076]
[1744573044650,40.43508076,129.74,129.67,9.0]
[1744573044960,0.28432314,129.73,129.69,40.43508076]
[1744573045262,40.86156547,129.73,129.63,6.5906]
[1744573045467,0.28432314,129.71,129.63,6.5906]
[1744573045624,0.28432314,129.69,129.65,40.43508076]
[1744573046069,0.28432314,129.69,129.66,40.43508076]
[1744573046244,0.28432314,129.7,129.67,40.43508076]
[1744573046566,7.7096,129.71,129.67,40.43508076]
[1744573046861,0.28432314,129.7,129.62,16.7146]
[1744573047156,40.7194039,129.68,129.63,40.43508076]
[1744573047458,40.43508076,129.67,129.61,7.7153]
[1744573047650,40.43508076,129.67,129.62,40.43508076]
[1744573047848,48.14728076,129.67,129.62,40.43508076]
[1744573048057,7.7122,129.67,129.6,7.7158]
[1744573048248,40.7194039,129.66,129.61,40.43508076]
[1744573048442,0.28432314,129.66,129.62,40.43508076]
[1744573049251,0.28432314,129.64,129.58,9.0]
[1744573049493,0.28432314,129.64,129.59,40.43508076]
[1744573049663,40.7194039,129.64,129.59,40.43508076]
[1744573049860,40.43508076,129.63,129.58,40.43508076]
[1744573050033,0.42648471,129.67,129.62,40.43508076]
[1744573050236,0.28432314,129.67,129.64,40.43508076]
[1744573050437,0.28432314,129.67,129.6,40.43508076]
[1744573050737,40.7194039,129.67,129.59,26.0]
[1744573050941,0.28432314,129.67,129.63,40.43508076]
[1744573052070,7.99622314,129.67,129.62,7.7147]
[1744573052279,7.99622314,129.67,129.63,40.43508076]
[1744573052970,23.10086157,129.7,129.64,40.43508076]
[1744573053136,63.39378076,129.7,129.65,40.43508076]
[1744573053342,54.39378076,129.7,129.65,40.43508076]
[1744573053652,54.39378076,129.7,129.57,19.2931]
[1744573053653,40.7194039,129.66,129.57,19.2931]
[1744573053842,48.4332039,129.64,129.59,40.43508076]
[1744573054170,48.4332039,129.64,129.55,18.67964886]
[1744573054372,48.4332039,129.64,129.55,0.03]
[1744573054373,40.43508076,129.61,129.55,0.03]
[1744573054584,40.7194039,129.6,129.55,40.46508076]
[1744573054755,0.28432314,129.6,129.56,40.43508076]
[1744573055082,40.43508076,129.58,129.55,0.03]
[1744573055242,0.42648471,129.59,129.55,0.03]
[1744573055442,0.28432314,129.57,129.55,0.03]
[1744573055643,0.28432314,129.6,129.56,40.43508076]
[1744573055941,8.00082314,129.6,129.55,40.46508076]
[1744573056149,48.4359039,129.6,129.55,40.46508076]
[1744573056556,48.4359039,129.6,129.55,48.18388076]
[1744573056557,40.7194039,129.6,129.55,48.18388076]
[1744573056741,40.7194039,129.6,129.55,40.46508076]
[1744573056951,40.7194039,129.6,129.55,0.03]
[1744573057154,48.4355039,129.6,129.55,40.46508076]
[1744573057467,40.43508076,129.64,129.59,40.43508076]
[1744573057652,40.43508076,129.64,129.55,53.0463]
[1744573057848,40.43508076,129.62,129.55,0.03]
[1744573058165,0.28432314,129.61,129.55,0.03]
[1744573058359,0.14216157,129.66,129.55,0.03]
[1744573058360,13.9497,129.67,129.6,40.43508076]
[1744573058658,13.9494,129.67,129.63,40.43508076]
[1744573058959,54.38448076,129.67,129.62,40.43508076]
[1744573059165,40.57724233,129.66,129.56,9.36]
[1744573059366,0.28432314,129.65,129.56,9.36]
[1744573059850,0.28432314,129.65,129.61,40.43508076]
[1744573060043,0.28432314,129.65,129.6,7.7157]
[1744573060244,0.28432314,129.65,129.61,40.43508076]
[1744573060445,13.9494,129.67,129.63,40.43508076]
[1744573060644,13.9494,129.67,129.62,40.43508076]
[1744573060848,66.43508076,129.64,129.58,7.7172]
[1744573061048,66.43508076,129.64,129.55,40.46508076]
[1744573061049,0.28432314,129.6,129.55,40.46508076]
[1744573061569,0.28432314,129.56,129.55,0.03]
[1744573061741,40.86156547,129.56,129.55,0.03]
[1744573061946,48.57996547,129.56,129.55,0.03]
[1744573062483,26.42648471,129.53,129.52,0.03]
[1744573062655,26.42648471,129.53,129.39,19.3202]
[1744573062656,0.42648471,129.52,129.39,19.3202]
[1744573062844,0.28432314,129.47,129.39,7.7285]
[1744573063161,0.42648471,129.47,129.39,7.7285]
[1744573063365,40.43508076,129.46,129.39,7.7285]
[1744573063563,26.42648471,129.47,129.38,2.6707712]
[1744573063764,0.28432314,129.42,129.38,2.1707712]
[1744573063977,0.28432314,129.4,129.38,2.1707712]
[1744573064554,0.28432314,129.42,129.39,40.43508076]
[1744573064746,13.962,129.46,129.38,9.8996712]
[1744573065049,0.28432314,129.45,129.38,9.8996712]
[1744573065253,0.42648471,129.45,129.38,9.8996712]
[1744573065445,40.7194039,129.4,129.38,2.1707712]
[1744573065643,26.0,129.35,129.22,2.5065]
[1744573065876,0.14216157,129.37,129.23,7.7381]
[1744573065877,19.07613357,129.37,129.23,7.7381]
[1744573066168,18.64964886,129.36,129.23,7.7381]
[1744573066384,40.7194039,129.36,129.25,1.0]
[1744573066566,26.0,129.31,129.25,0.03]
[1744573066870,0.28432314,129.31,129.25,0.03]
[1744573067049,0.14216157,129.34,129.25,0.03]
[1744573067249,6.2375,129.35,129.32,0.03]
[1744573067467,45.07613357,129.33,129.32,0.03]
[1744573067668,85.51121433,129.33,129.32,0.03]
[1744573067874,85.51121433,129.33,129.25,0.03]
[1744573067875,0.28432314,129.29,129.25,0.03]
[1744573068094,66.43508076,129.33,129.22,7.7386]
[1744573068095,0.42648471,129.34,129.22,7.7386]
[1744573068369,0.14216157,129.36,129.23,26.0]
[1744573068674,48.30754233,129.36,129.31,40.43508076]
[1744573068852,40.43508076,129.35,129.24,18.64964886]
[1744573069047,40.43508076,129.32,129.22,27.0854]
[1744573069265,0.42648471,129.31,129.22,7.7386]
[1744573069476,19.07613357,129.27,129.14,7.6939]
[1744573069674,19.07613357,129.27,129.12,280.7331975]
[1744573069675,40.43508076,129.21,129.12,280.7331975]
[1744573069965,0.28432314,129.21,129.12,2.7331975]
[1744573070168,0.28432314,129.21,129.15,40.43508076]
[1744573070469,0.42648471,129.23,129.17,40.43508076]
[1744573070648,7.7385,129.23,129.12,2.7331975]
[1744573070846,40.43508076,129.23,129.12,10.4777975]
[1744573071047,26.0,129.21,129.12,10.4777975]
[1744573071269,26.0,129.17,129.12,2.7331975]
[1744573071575,0.42648471,129.16,129.12,2.7331975]
[1744573071788,19.07613357,129.16,129.12,2.7331975]
[1744573071951,0.28432314,129.17,129.12,2.7331975]
[1744573072152,7.7404,129.2,129.12,2.7331975]
[1744573072353,7.7393,129.22,129.12,10.4775975]
[1744573072567,7.7393,129.22,129.12,50.91267826]
[1744573072763,0.42648471,129.23,129.12,10.4775975]
[1744573072976,0.14216157,129.23,129.12,50.91267826]
[1744573073294,29.73428931,129.3,129.12,29.8395975]
[1744573073583,40.43508076,129.23,129.17,40.43508076]
[1744573073781,0.14216157,129.27,129.13,18.64964886]
[1744573074090,0.14216157,129.27,129.21,40.43508076]
[1744573074091,7.7363,129.26,129.21,40.43508076]
[1744573074268,40.43508076,129.26,129.14,27.1023]
[1744573074454,26.0,129.18,129.12,2.7331975]
[1744573074660,26.0,129.09,128.95,7.7549]
[1744573074858,26.0,129.09,128.93,1.0]
[1744573074859,26.0,129.09,128.89,7.7585]
[1744573075061,0.28432314,129.08,128.9,1.0]
[1744573075282,0.5,129.04,128.91,0.5]
[1744573075486,0.5,129.03,128.9,0.5]
[1744573075708,0.5,128.99,128.89,7.7585]
[1744573075859,0.5,128.97,128.89,7.7585]
[1744573076058,0.5,128.98,128.87,8.2597]
[1744573076385,18.64964886,129.04,128.89,0.5]
[1744573076386,0.5,128.99,128.89,0.5]
[1744573076594,0.42648471,129.0,128.89,0.5]
[1744573076964,0.28432314,129.03,128.87,27.159]
[1744573076965,0.5,129.03,128.91,0.5]
[1744573077263,0.5,129.03,128.87,27.159]
[1744573077264,0.5,129.04,128.9,0.5]
[1744573077462,0.5,129.01,128.88,40.43508076]
[1744573077678,0.5,128.95,128.87,7.7597]
[1744573077852,0.5,128.96,128.85,6.5074]
[1744573078057,0.5,128.98,128.86,10.4932975]
[1744573078254,0.5,129.07,128.9,0.5]
[1744573078492,45.3414,129.12,128.88,40.43508076]
[1744573078493,0.5,129.01,128.91,26.0]
[1744573078692,0.5,128.93,128.86,2.7331975]
[1744573078852,0.5,128.91,128.86,2.7331975]
[1744573079051,0.5,128.91,128.86,43.16827826]
[1744573079359,0.5,128.92,128.86,2.7331975]
[1744573079768,0.5,128.98,128.86,2.7331975]
[1744573079980,0.5,129.02,128.9,26.0]
[1744573080180,0.5,129.1,128.94,26.0]
[1744573080361,0.5,129.11,129.04,40.43508076]
[1744573080892,1.6514,129.17,129.1,40.43508076]
[1744573081057,0.5,129.07,128.95,20.0]
[1744573081391,0.5,129.03,128.98,40.43508076]
[1744573081556,0.5,129.05,129.01,40.43508076]
[1744573081760,0.5,129.07,128.96,40.43508076]
[1744573081959,0.5,129.08,129.03,40.43508076]
[1744573082257,0.5,129.08,129.04,40.43508076]
[1744573082458,1.6514,129.12,129.0,26.0]
[1744573082686,1.6514,129.12,128.97,27.638]
[1744573082687,40.93508076,129.08,128.97,27.138]
[1744573082886,0.5,129.02,128.93,19.3891]
[1744573083185,0.5,129.01,128.95,7.7544]
[1744573083373,0.5,129.03,128.89,6.5074]
[1744573083690,0.5,129.06,129.02,40.43508076]
[1744573083871,7.7443,129.13,128.91,0.5]
[1744573083872,0.5,129.08,128.94,26.0]
[1744573084066,0.5,129.07,129.04,40.43508076]
[1744573084258,0.5,129.11,128.99,26.0]
[1744573084457,0.5,129.1,128.99,26.0]
[1744573084689,0.5,129.08,128.99,26.0]
[1744573084985,0.5,129.06,129.02,40.43508076]
[1744573085185,0.5,129.04,128.95,27.1422]
[1744573085397,0.5,129.06,129.0,40.43508076]
[1744573085559,0.5,129.12,128.99,26.0]
[1744573085764,0.5,129.18,129.11,40.43508076]
[1744573085983,0.5,129.21,129.16,40.43508076]
[1744573086297,7.6408,129.26,129.12,40.43508076]
[1744573086298,0.5,129.22,129.12,40.43508076]
[1744573086594,0.5,129.22,129.16,40.43508076]
[1744573086763,0.5,129.2,129.12,40.43508076]
[1744573086960,0.5,129.17,129.11,18.64964886]
[1744573087199,40.43508076,129.12,129.01,7.7513]
[1744573087384,0.5,129.08,129.01,7.7513]
[1744573087560,0.5,129.06,129.01,48.18638076]
[1744573087761,0.5,129.06,129.01,7.7513]
[1744573087956,0.5,129.03,128.96,19.3857]
[1744573088159,0.5,129.03,128.97,40.43508076]
[1744573088392,0.5,129.0,128.93,7.7557]
[1744573088684,0.5,129.03,128.93,7.7557]
[1744573088891,0.5,129.06,128.96,40.43508076]
[1744573089083,0.5,129.08,129.05,40.43508076]
[1744573089279,0.5,129.1,128.99,18.79181043]
[1744573089597,0.5,129.13,129.09,40.43508076]
[1744573089799,0.5,129.11,129.07,40.43508076]
[1744573090091,0.5,129.14,129.08,7.7465]
[1744573090261,0.5,129.13,129.1,40.43508076]
[1744573090457,66.43508076,129.16,129.02,7.7507]
[1744573090458,0.5,129.08,129.02,7.7507]
[1744573090658,40.93508076,129.06,128.96,6.3015]
[1744573090905,0.5,129.07,128.96,48.33154233]
[1744573091062,0.5,129.1,129.05,40.43508076]
[1744573091259,0.5,129.16,129.09,40.43508076]
[1744573091479,6.2783,129.19,129.06,18.64964886]
[1744573091480,0.5,129.19,129.15,40.43508076]
[1744573091666,0.5,129.17,129.07,0.42648471]
[1744573091981,0.5,129.13,129.06,265.8]
[1744573092184,0.5,129.09,129.03,40.43508076]
[1744573092362,0.5,129.11,129.08,40.43508076]
[1744573092696,0.5,129.12,129.04,40.43508076]
[1744573092867,8.2439,129.14,129.09,40.43508076]
[1744573093061,40.93508076,129.14,129.09,40.43508076]
[1744573093262,0.5,129.16,129.11,40.43508076]
[1744573093462,0.5,129.13,129.05,18.64964886]
[1744573093664,0.5,129.15,129.1,40.43508076]
[1744573093903,0.5,129.17,129.13,40.43508076]
[1744573094066,0.5,129.12,129.04,59.80838076]
[1744573094265,40.43508076,129.14,128.97,266.3]
[1744573094266,0.5,129.08,128.99,7.7525]
[1744573094466,0.5,129.09,129.0,0.14216157]
[1744573094666,0.5,129.1,129.05,40.43508076]
[1744573094879,0.5,129.1,129.06,40.43508076]
[1744573095087,0.5,129.1,129.08,40.43508076]
[1744573095406,0.5,129.11,129.04,0.28432314]
[1744573095697,0.5,129.12,129.08,40.43508076]
[1744573096008,0.5,129.05,128.99,7.7525]
[1744573096179,0.5,129.05,128.93,27.1463]
[1744573096180,0.5,128.99,128.93,27.1463]
[1744573096387,0.5,128.99,128.93,7.7561]
[1744573096570,0.5,128.98,128.93,40.43508076]
[1744573096761,40.57724233,129.04,128.92,77.75685802]
[1744573096762,40.43508076,128.96,128.92,70.00025802]
[1744573096967,0.5,128.95,128.89,0.03]
[1744573097192,0.5,128.92,128.89,0.03]
[1744573097391,0.5,128.9,128.89,0.03]
[1744573097593,0.5,128.92,128.89,0.03]
[1744573097773,0.5,128.94,128.91,40.43508076]
[1744573097974,0.5,129.03,128.93,40.43508076]
[1744573098310,0.5,129.01,128.98,40.43508076]
[1744573098606,0.5,129.07,129.0,40.43508076]
[1744573098803,9.7829,129.09,129.03,40.38951437]
[1744573098999,0.5,129.05,128.97,18.64964886]
[1744573099299,0.5,129.07,129.02,40.43508076]
[1744573099593,0.5,129.1,129.01,18.64964886]
[1744573099795,0.5,129.09,129.06,13.5251485]
[1744573100004,0.5,129.08,129.05,40.43508076]